[Event "European Online Club-ch-C 2021"]
[Site "Online"]
[Date "2021.03.27"]
[Round "3.14"]
[White "Zimmermann, Luc"]
[Black "Reuker, Jari"]
[Result "0-1"]
[ECO "B22"]
[WhiteElo "2151"]
[BlackElo "2423"]
[Annotator "NA"]
[PlyCount "82"]
[EventDate "2021.03.27"]
[EventType "team-tourn"]
[EventCountry "NET"]
[SourceTitle "playchess.com"]
[Source "ChessBase"]
[SourceQuality "1"]
[TimeControl "900+5"]

1. e4 {[%emt 0:00:00]} c5 {[%emt 0:00:20]} 2. c3 {[%emt 0:00:03]} Nf6 {[%emt 0:00:02]} 3. e5 {[%emt 0:00:03]} Nd5 {[%emt 0:00:01]} 4. d4 {[%emt 0:00:01]} cxd4 {[%emt 0:00:01]} 5. Nf3 {[%emt 0:00:01]} e6 {[%emt 0:00:01]} 6. cxd4 {[%emt 0:00:02]} d6 {[%emt 0:00:01]} 7. a3 {[%emt 0:00:02]} Bd7 {[%emt 0:00:10]} 8. Bd3 {[%emt 0:00:03]} Bc6 {[%emt 0:00:01]} 9. O-O {[%emt 0:00:02]} Nd7 {[%emt 0:00:02]} 10. Re1 {[%emt 0:00:02]} Be7 {[%emt 0:00:43]} 11. b4 {[%emt 0:01:39]} a6 {[%emt 0:00:05]} 12. Nbd2 {[%emt 0:01:04]} dxe5 {[%emt 0:00:48]} 13. dxe5 {[%emt 0:00:09]} a5 {[%emt 0:01:11]} 14. b5 {[%emt 0:05:13]} Nc3 {[%emt 0:00:13]} 15. Qc2 {[%emt 0:01:51]} Nxb5 {[%emt 0:06:06]} 16. Ne4 {[%emt 0:03:10]} Bxe4 {[%emt 0:04:06]} 17. Bxe4 {[%emt 0:00:57]} Nc5 {[%emt 0:00:07]} 18. Qb2 {[%emt 0:01:05]} Nc7 {[%emt 0:00:44]} 19. Bxb7 {[%emt 0:00:25]} Nxb7 {[%emt 0:00:40]} 20. Qxb7 {[%emt 0:00:00]} O-O {[%emt 0:00:05]} 21. Be3 {[%emt 0:00:38]} Nd5 {[%emt 0:00:04]} 22. Bd4 {[%emt 0:00:01]} Qc8 {[%emt 0:00:29]} 23. Qxc8 {[%emt 0:00:03]} Rfxc8 {[%emt 0:00:02]} 24. a4 {[%emt 0:00:03]} Kf8 {[%emt 0:00:11]} 25. Rec1 {[%emt 0:00:11]} Bb4 {[%emt 0:00:06]} 26. g3 {[%emt 0:00:08]} Ke7 {[%emt 0:00:02]} 27. Kf1 {[%emt 0:00:03]} h6 {[%emt 0:00:03]} 28. Ke2 {[%emt 0:00:08]} Kd7 {[%emt 0:00:05]} 29. Kd3 {[%emt 0:00:04]} Rab8 {[%emt 0:00:17]} 30. Nd2 {[%emt 0:00:06]} Rxc1 {[%emt 0:00:21]} 31. Rxc1 {[%emt 0:00:02]} Bxd2 {[%emt 0:00:01]} 32. Kxd2 {[%emt 0:00:03]} Rb4 {[%emt 0:00:01]} 33. Bc3 {[%emt 0:00:13]} Rxa4 {[%emt 0:00:03]} 34. Rc2 {[%emt 0:00:04]} g5 {[%emt 0:00:15]} 35. Rb2 {[%emt 0:00:02]} Ke7 {[%emt 0:00:19]} 36. Rb7+ {[%emt 0:00:02]} Kf8 {[%emt 0:00:01]} 37. Rb8+ {[%emt 0:00:02]} Kg7 {[%emt 0:00:02]} 38. Ra8 {[%emt 0:00:04]} Ra2+ {[%emt 0:00:01]} 39. Kd3 {[%emt 0:00:12]} Nxc3 {[%emt 0:00:01]} 40. Kxc3 {[%emt 0:00:02]} Rxf2 {[%emt 0:00:01]} 41. Ra6 {[%emt 0:00:05]} Rxh2 {[%emt 0:00:03]} 0-1

[Event "European Online Club-ch-C 2021"]
[Site "Online"]
[Date "2021.03.27"]
[Round "3.15"]
[White "Wachinger, Nikolas"]
[Black "De Mon, Gino"]
[Result "1-0"]
[ECO "B51"]
[WhiteElo "2369"]
[BlackElo "2060"]
[Annotator "NA"]
[PlyCount "27"]
[EventDate "2021.03.27"]
[EventType "team-tourn"]
[EventCountry "NET"]
[SourceTitle "playchess.com"]
[Source "ChessBase"]
[SourceQuality "1"]
[TimeControl "900+5"]

1. e4 {[%emt 0:00:00]} c5 {[%emt 0:00:02]} 2. Nf3 {[%emt 0:00:31]} d6 {[%emt 0:00:10]} 3. Bb5+ {[%emt 0:00:08]} Nd7 {[%emt 0:00:02]} 4. d4 {[%emt 0:00:03]} cxd4 {[%emt 0:00:04]} 5. Qxd4 {[%emt 0:00:02]} a6 {[%emt 0:00:03]} 6. Bxd7+ {[%emt 0:00:04]} Bxd7 {[%emt 0:00:00]} 7. Nc3 {[%emt 0:00:10]} Nf6 {[%emt 0:00:27]} 8. Bg5 {[%emt 0:00:06]} e6 {[%emt 0:00:03]} 9. O-O-O {[%emt 0:00:47]} Rc8 {[%emt 0:00:30]} 10. e5 {[%emt 0:00:33]} dxe5 {[%emt 0:00:54]} 11. Nxe5 {[%emt 0:00:03]} Rc7 {[%emt 0:02:00]} 12. Ne4 {[%emt 0:01:28]} h6 {[%emt 0:01:03]} 13. Bxf6 {[%emt 0:00:15]} gxf6 {[%emt 0:00:05]} 14. Nxd7 {[%emt 0:00:01]} 1-0

[Event "European Online Club-ch-C 2021"]
[Site "Online"]
[Date "2021.03.27"]
[Round "3.16"]
[White "De Vries, Leon"]
[Black "Schulze, Lara"]
[Result "0-1"]
[ECO "A09"]
[WhiteElo "2021"]
[BlackElo "2269"]
[Annotator "NA"]
[PlyCount "68"]
[EventDate "2021.03.27"]
[EventType "team-tourn"]
[EventCountry "NET"]
[SourceTitle "playchess.com"]
[Source "ChessBase"]
[SourceQuality "1"]
[TimeControl "900+5"]

1. Nf3 {[%emt 0:00:00]} Nf6 {[%emt 0:00:04]} 2. c4 {[%emt 0:00:04]} e6 {[%emt 0:00:02]} 3. g3 {[%emt 0:00:02]} d5 {[%emt 0:00:02]} 4. Bg2 {[%emt 0:00:05]} d4 {[%emt 0:00:48]} 5. O-O {[%emt 0:00:10]} c5 {[%emt 0:00:02]} 6. d3 {[%emt 0:00:02]} Nc6 {[%emt 0:00:06]} 7. e3 {[%emt 0:00:12]} Bd6 {[%emt 0:00:06]} 8. exd4 {[%emt 0:00:36]} cxd4 {[%emt 0:00:04]} 9. b4 {[%emt 0:00:54]} Bxb4 {[%emt 0:01:06]} 10. Qa4 {[%emt 0:00:10]} O-O {[%emt 0:00:25]} 11. Bb2 {[%emt 0:01:38]} Bc5 {[%emt 0:00:57]} 12. Na3 {[%emt 0:00:40]} e5 {[%emt 0:01:06]} 13. Rfe1 {[%emt 0:00:41]} Re8 {[%emt 0:00:15]} 14. Ng5 {[%emt 0:01:14]} Bf5 {[%emt 0:02:07]} 15. Rad1 {[%emt 0:02:10]} Rc8 {[%emt 0:01:05]} 16. Qb5 {[%emt 0:01:09]} Qb6 {[%emt 0:01:06]} 17. Qxb6 {[%emt 0:01:14]} Bxb6 {[%emt 0:00:08]} 18. Nb5 {[%emt 0:01:19]} Bc5 {[%emt 0:00:12]} 19. Bd5 {[%emt 0:01:04]} Nxd5 {[%emt 0:00:35]} 20. cxd5 {[%emt 0:00:04]} Nb4 {[%emt 0:00:07]} 21. Ne4 {[%emt 0:00:28]} Bxe4 {[%emt 0:01:32]} 22. dxe4 {[%emt 0:00:06]} a6 {[%emt 0:00:14]} 23. a3 {[%emt 0:00:20]} axb5 {[%emt 0:00:51]} 24. axb4 {[%emt 0:00:04]} Bxb4 {[%emt 0:00:01]} 25. Re2 {[%emt 0:00:02]} Bc3 {[%emt 0:00:22]} 26. Rb1 {[%emt 0:00:11]} b4 {[%emt 0:00:11]} 27. Bc1 {[%emt 0:00:10]} Ra8 {[%emt 0:00:23]} 28. f4 {[%emt 0:00:16]} d3 {[%emt 0:00:12]} 29. Rg2 {[%emt 0:00:41]} exf4 {[%emt 0:00:26]} 30. Bxf4 {[%emt 0:00:13]} Rxe4 {[%emt 0:00:07]} 31. d6 {[%emt 0:00:04]} f6 {[%emt 0:00:32]} 32. h4 {[%emt 0:00:10]} Kf7 {[%emt 0:00:10]} 33. Bd2 {[%emt 0:00:10]} Ke6 {[%emt 0:00:12]} 34. Rb3 {[%emt 0:00:17]} Rc8 {[%emt 0:00:24]} 0-1

[Event "European Online Club-ch-C 2021"]
[Site "Online"]
[Date "2021.03.27"]
[Round "3.17"]
[White "Markoja, Boris"]
[Black "Migot, Tangi"]
[Result "1-0"]
[ECO "D23"]
[WhiteElo "2439"]
[BlackElo "2353"]
[Annotator "NA"]
[PlyCount "147"]
[EventDate "2021.03.27"]
[EventType "team-tourn"]
[EventCountry "NET"]
[SourceTitle "playchess.com"]
[Source "ChessBase"]
[SourceQuality "1"]
[TimeControl "900+5"]

1. d4 {[%emt 0:00:00]} d5 {[%emt 0:00:03]} 2. c4 {[%emt 0:00:02]} c6 {[%emt 0:00:01]} 3. Nf3 {[%emt 0:00:03]} Nf6 {[%emt 0:00:01]} 4. Qb3 {[%emt 0:00:03]} dxc4 {[%emt 0:00:03]} 5. Qxc4 {[%emt 0:00:02]} Bf5 {[%emt 0:00:01]} 6. g3 {[%emt 0:00:02]} e6 {[%emt 0:00:01]} 7. Bg2 {[%emt 0:00:04]} Be7 {[%emt 0:00:02]} 8. O-O {[%emt 0:00:04]} O-O {[%emt 0:00:01]} 9. Nbd2 {[%emt 0:00:21]} Qb6 {[%emt 0:00:24]} 10. Nh4 {[%emt 0:02:49]} Bg4 {[%emt 0:00:26]} 11. h3 {[%emt 0:00:17]} Bh5 {[%emt 0:00:02]} 12. g4 {[%emt 0:00:10]} Nd5 {[%emt 0:01:13]} 13. Ndf3 {[%emt 0:00:08]} Qd8 {[%emt 0:00:53]} 14. gxh5 {[%emt 0:00:33]} Bxh4 {[%emt 0:00:03]} 15. h6 {[%emt 0:00:34]} Bf6 {[%emt 0:00:41]} 16. hxg7 {[%emt 0:01:15]} Bxg7 {[%emt 0:00:04]} 17. e4 {[%emt 0:00:09]} Nb6 {[%emt 0:00:12]} 18. Qb3 {[%emt 0:00:05]} N8d7 {[%emt 0:00:25]} 19. a4 {[%emt 0:00:43]} a5 {[%emt 0:00:10]} 20. Bf4 {[%emt 0:00:15]} Kh8 {[%emt 0:00:39]} 21. Rad1 {[%emt 0:00:23]} Qe7 {[%emt 0:01:44]} 22. Bc7 {[%emt 0:00:13]} Ra6 {[%emt 0:00:25]} 23. e5 {[%emt 0:00:27]} Rg8 {[%emt 0:02:33]} 24. Kh1 {[%emt 0:01:09]} Bh6 {[%emt 0:00:54]} 25. Rg1 {[%emt 0:00:58]} Qb4 {[%emt 0:00:09]} 26. Qxb4 {[%emt 0:00:52]} axb4 {[%emt 0:00:00]} 27. b3 {[%emt 0:00:01]} Nd5 {[%emt 0:00:12]} 28. Bd6 {[%emt 0:00:02]} Raa8 {[%emt 0:00:42]} 29. Bf1 {[%emt 0:02:01]} Rxg1+ {[%emt 0:00:28]} 30. Kxg1 {[%emt 0:00:11]} Bf8 {[%emt 0:00:02]} 31. Ng5 {[%emt 0:00:34]} Kg8 {[%emt 0:00:13]} 32. Ne4 {[%emt 0:00:03]} f5 {[%emt 0:00:41]} 33. Nc5 {[%emt 0:01:09]} Nxc5 {[%emt 0:00:26]} 34. dxc5 {[%emt 0:00:01]} Bh6 {[%emt 0:00:29]} 35. Bc4 {[%emt 0:00:03]} Kf7 {[%emt 0:00:16]} 36. Bxd5 {[%emt 0:00:02]} exd5 {[%emt 0:00:17]} 37. Rd4 {[%emt 0:00:02]} Ke6 {[%emt 0:00:51]} 38. Rxb4 {[%emt 0:00:10]} Rg8+ {[%emt 0:00:01]} 39. Kf1 {[%emt 0:00:02]} Rg7 {[%emt 0:00:02]} 40. Ke2 {[%emt 0:00:18]} Bg5 {[%emt 0:00:18]} 41. a5 {[%emt 0:00:18]} Bd8 {[%emt 0:00:19]} 42. Ra4 {[%emt 0:00:02]} Rg1 {[%emt 0:00:22]} 43. a6 {[%emt 0:00:09]} bxa6 {[%emt 0:00:03]} 44. Rxa6 {[%emt 0:00:02]} Rb1 {[%emt 0:00:10]} 45. Rxc6 {[%emt 0:00:03]} Rxb3 {[%emt 0:00:02]} 46. Rc8 {[%emt 0:00:25]} Bg5 {[%emt 0:00:21]} 47. c6 {[%emt 0:00:04]} d4 {[%emt 0:00:11]} 48. Rb8 {[%emt 0:01:23]} d3+ {[%emt 0:00:04]} 49. Kf1 {[%emt 0:00:07]} Rc3 {[%emt 0:00:34]} 50. c7 {[%emt 0:00:05]} d2 {[%emt 0:00:27]} 51. Ke2 {[%emt 0:00:05]} Kd7 {[%emt 0:00:21]} 52. e6+ {[%emt 0:00:05]} Kxd6 {[%emt 0:00:04]} 53. c8=Q {[%emt 0:00:02]} Rxc8 {[%emt 0:00:01]} 54. Rxc8 {[%emt 0:00:00]} Kxe6 {[%emt 0:00:01]} 55. Rh8 {[%emt 0:00:02]} h6 {[%emt 0:00:02]} 56. h4 {[%emt 0:00:01]} Bf4 {[%emt 0:00:04]} 57. Ra8 {[%emt 0:00:01]} Kf6 {[%emt 0:00:09]} 58. Rd8 {[%emt 0:00:04]} Kg6 {[%emt 0:00:14]} 59. Kf3 {[%emt 0:00:03]} Be5 {[%emt 0:00:02]} 60. Rxd2 {[%emt 0:00:02]} Kh5 {[%emt 0:00:03]} 61. Rd5 {[%emt 0:00:02]} Bb8 {[%emt 0:00:05]} 62. Rxf5+ {[%emt 0:00:07]} Kxh4 {[%emt 0:00:04]} 63. Rf8 {[%emt 0:00:06]} Bc7 {[%emt 0:00:05]} 64. Rg8 {[%emt 0:00:03]} h5 {[%emt 0:00:02]} 65. Ke4 {[%emt 0:00:01]} Kh3 {[%emt 0:00:04]} 66. f4 {[%emt 0:00:01]} h4 {[%emt 0:00:05]} 67. f5 {[%emt 0:00:01]} Kh2 {[%emt 0:00:04]} 68. f6 {[%emt 0:00:03]} h3 {[%emt 0:00:05]} 69. f7 {[%emt 0:00:03]} Bd6 {[%emt 0:00:02]} 70. Kf3 {[%emt 0:00:05]} Kh1 {[%emt 0:00:03]} 71. f8=Q {[%emt 0:00:17]} Bxf8 {[%emt 0:00:04]} 72. Rxf8 {[%emt 0:00:01]} h2 {[%emt 0:00:01]} 73. Ra8 {[%emt 0:00:05]} Kg1 {[%emt 0:00:02]} 74. Ra1# {[%emt 0:00:01]} 1-0

[Event "European Online Club-ch-C 2021"]
[Site "Online"]
[Date "2021.03.27"]
[Round "3.18"]
[White "Le Goff, Ronan"]
[Black "Subelj, Jan"]
[Result "1/2-1/2"]
[ECO "D02"]
[WhiteElo "2288"]
[BlackElo "2418"]
[Annotator "NA"]
[PlyCount "57"]
[EventDate "2021.03.27"]
[EventType "team-tourn"]
[EventCountry "NET"]
[SourceTitle "playchess.com"]
[Source "ChessBase"]
[SourceQuality "1"]
[TimeControl "900+5"]

1. d4 {[%emt 0:00:00]} Nf6 {[%emt 0:00:05]} 2. Nf3 {[%emt 0:00:04]} e6 {[%emt 0:00:03]} 3. Bf4 {[%emt 0:00:02]} d5 {[%emt 0:00:03]} 4. e3 {[%emt 0:00:04]} Bd6 {[%emt 0:00:02]} 5. Bg3 {[%emt 0:01:31]} c5 {[%emt 0:00:08]} 6. Nbd2 {[%emt 0:00:37]} Qc7 {[%emt 0:00:08]} 7. dxc5 {[%emt 0:01:02]} Qxc5 {[%emt 0:00:04]} 8. c4 {[%emt 0:00:37]} Bxg3 {[%emt 0:00:31]} 9. hxg3 {[%emt 0:00:04]} O-O {[%emt 0:00:23]} 10. cxd5 {[%emt 0:00:15]} Qxd5 {[%emt 0:00:35]} 11. Bc4 {[%emt 0:00:06]} Qd6 {[%emt 0:00:15]} 12. g4 {[%emt 0:01:04]} Nxg4 {[%emt 0:03:33]} 13. Ng5 {[%emt 0:02:51]} Ne5 {[%emt 0:01:30]} 14. Rxh7 {[%emt 0:01:40]} Rd8 {[%emt 0:00:57]} 15. Qc2 {[%emt 0:04:19]} Qxd2+ {[%emt 0:00:33]} 16. Qxd2 {[%emt 0:00:07]} Rxd2 {[%emt 0:00:04]} 17. Kxd2 {[%emt 0:00:22]} Nxc4+ {[%emt 0:00:04]} 18. Kc3 {[%emt 0:00:11]} Ne5 {[%emt 0:00:05]} 19. Rah1 {[%emt 0:01:01]} Ng6 {[%emt 0:00:04]} 20. f4 {[%emt 0:00:15]} Nd7 {[%emt 0:00:29]} 21. g4 {[%emt 0:00:10]} Nf6 {[%emt 0:00:04]} 22. R7h3 {[%emt 0:00:05]} Nxg4 {[%emt 0:00:03]} 23. Rd1 {[%emt 0:00:12]} Kf8 {[%emt 0:00:17]} 24. Rd8+ {[%emt 0:00:07]} Ke7 {[%emt 0:00:02]} 25. Rg8 {[%emt 0:00:01]} Kf6 {[%emt 0:03:37]} 26. Nh7+ {[%emt 0:00:12]} Ke7 {[%emt 0:00:19]} 27. Ng5 {[%emt 0:00:02]} Kf6 {[%emt 0:01:33]} 28. Nh7+ {[%emt 0:00:02]} Ke7 {[%emt 0:00:11]} 29. Ng5 {[%emt 0:00:01]} 1/2-1/2

[Event "European Online Club-ch-C 2021"]
[Site "Online"]
[Date "2021.03.27"]
[Round "3.19"]
[White "Skuhala, Jernej"]
[Black "Bouget, Alexandre"]
[Result "1/2-1/2"]
[ECO "C40"]
[WhiteElo "2351"]
[BlackElo "2247"]
[Annotator "NA"]
[PlyCount "140"]
[EventDate "2021.03.27"]
[EventType "team-tourn"]
[EventCountry "NET"]
[SourceTitle "playchess.com"]
[Source "ChessBase"]
[SourceQuality "1"]
[TimeControl "900+5"]

1. e4 {[%emt 0:00:00]} e5 {[%emt 0:00:06]} 2. Nf3 {[%emt 0:00:03]} d5 {[%emt 0:00:02]} 3. exd5 {[%emt 0:01:05]} Bd6 {[%emt 0:00:06]} 4. Bb5+ {[%emt 0:00:24]} c6 {[%emt 0:00:09]} 5. dxc6 {[%emt 0:00:03]} Nxc6 {[%emt 0:00:44]} 6. Qe2 {[%emt 0:00:09]} Nf6 {[%emt 0:01:54]} 7. d3 {[%emt 0:05:09]} O-O {[%emt 0:00:21]} 8. Bxc6 {[%emt 0:00:59]} bxc6 {[%emt 0:00:04]} 9. Nc3 {[%emt 0:00:02]} Rb8 {[%emt 0:00:10]} 10. O-O {[%emt 0:00:33]} Bg4 {[%emt 0:01:30]} 11. b3 {[%emt 0:00:32]} Qc8 {[%emt 0:02:28]} 12. Bg5 {[%emt 0:00:31]} Nd5 {[%emt 0:00:20]} 13. Ne4 {[%emt 0:00:21]} Bc7 {[%emt 0:00:12]} 14. c4 {[%emt 0:03:04]} f5 {[%emt 0:00:46]} 15. Nc5 {[%emt 0:02:01]} Nc3 {[%emt 0:02:11]} 16. Qe1 {[%emt 0:00:13]} Ba5 {[%emt 0:01:49]} 17. Bd2 {[%emt 0:00:11]} e4 {[%emt 0:00:38]} 18. Nd4 {[%emt 0:00:16]} Bb6 {[%emt 0:00:16]} 19. Bxc3 {[%emt 0:00:34]} Bxc5 {[%emt 0:00:02]} 20. dxe4 {[%emt 0:00:02]} Re8 {[%emt 0:00:53]} 21. e5 {[%emt 0:00:19]} Qd7 {[%emt 0:00:13]} 22. Nc2 {[%emt 0:00:11]} Qd3 {[%emt 0:00:12]} 23. Ne3 {[%emt 0:00:02]} Be2 {[%emt 0:00:09]} 24. Rd1 {[%emt 0:00:07]} Bxd1 {[%emt 0:00:06]} 25. Nxd1 {[%emt 0:00:02]} f4 {[%emt 0:00:12]} 26. Nb2 {[%emt 0:00:01]} Qf5 {[%emt 0:00:20]} 27. Na4 {[%emt 0:00:02]} f3 {[%emt 0:00:22]} 28. Qd1 {[%emt 0:00:06]} fxg2 {[%emt 0:00:06]} 29. Kxg2 {[%emt 0:00:05]} Rbd8 {[%emt 0:00:16]} 30. Qf3 {[%emt 0:00:04]} Qg6+ {[%emt 0:00:03]} 31. Qg3 {[%emt 0:00:05]} Qe4+ {[%emt 0:00:04]} 32. Qf3 {[%emt 0:00:02]} Qg6+ {[%emt 0:00:18]} 33. Kh1 {[%emt 0:00:02]} Rd3 {[%emt 0:00:08]} 34. Qg2 {[%emt 0:00:06]} Qxg2+ {[%emt 0:00:09]} 35. Kxg2 {[%emt 0:00:02]} Bd4 {[%emt 0:00:04]} 36. Bxd4 {[%emt 0:00:06]} Rxd4 {[%emt 0:00:00]} 37. Re1 {[%emt 0:00:02]} Rd2 {[%emt 0:00:10]} 38. Nc3 {[%emt 0:00:02]} Re6 {[%emt 0:00:10]} 39. Re3 {[%emt 0:00:17]} h5 {[%emt 0:00:07]} 40. h4 {[%emt 0:00:07]} Rg6+ {[%emt 0:00:04]} 41. Kf3 {[%emt 0:00:02]} Kf7 {[%emt 0:00:11]} 42. Ne4 {[%emt 0:00:01]} Rxa2 {[%emt 0:00:05]} 43. Ng5+ {[%emt 0:00:02]} Ke7 {[%emt 0:00:02]} 44. Kg3 {[%emt 0:00:03]} Rh6 {[%emt 0:00:15]} 45. f4 {[%emt 0:00:01]} g6 {[%emt 0:00:01]} 46. Rd3 {[%emt 0:00:07]} Rh8 {[%emt 0:00:03]} 47. Rd6 {[%emt 0:00:02]} Rb2 {[%emt 0:00:03]} 48. Kf3 {[%emt 0:00:08]} Rxb3+ {[%emt 0:00:02]} 49. Ke4 {[%emt 0:00:01]} Rb1 {[%emt 0:00:05]} 50. Rxc6 {[%emt 0:00:06]} Re1+ {[%emt 0:00:02]} 51. Kd5 {[%emt 0:00:03]} Rd8+ {[%emt 0:00:03]} 52. Kc5 {[%emt 0:00:01]} Rf1 {[%emt 0:00:05]} 53. Re6+ {[%emt 0:00:01]} Kf8 {[%emt 0:00:11]} 54. Rf6+ {[%emt 0:00:02]} Ke7 {[%emt 0:00:03]} 55. Rf7+ {[%emt 0:00:03]} Ke8 {[%emt 0:00:04]} 56. e6 {[%emt 0:00:28]} Rc8+ {[%emt 0:00:08]} 57. Kd5 {[%emt 0:00:02]} Rd1+ {[%emt 0:00:03]} 58. Ke5 {[%emt 0:00:01]} Rxc4 {[%emt 0:00:05]} 59. Rxa7 {[%emt 0:00:08]} Rc5+ {[%emt 0:00:06]} 60. Kf6 {[%emt 0:00:02]} Rf5+ {[%emt 0:00:03]} 61. Kxg6 {[%emt 0:00:02]} Rxf4 {[%emt 0:00:01]} 62. Nh7 {[%emt 0:00:21]} Rg1+ {[%emt 0:00:06]} 63. Kxh5 {[%emt 0:00:07]} Rf5+ {[%emt 0:00:20]} 64. Ng5 {[%emt 0:00:02]} Rf6 {[%emt 0:00:05]} 65. Rf7 {[%emt 0:00:14]} Rxe6 {[%emt 0:00:04]} 66. Ra7 {[%emt 0:00:07]} Rf6 {[%emt 0:00:03]} 67. Ra8+ {[%emt 0:00:01]} Ke7 {[%emt 0:00:03]} 68. Ra7+ {[%emt 0:00:01]} Ke8 {[%emt 0:00:02]} 69. Ra8+ {[%emt 0:00:01]} Ke7 {[%emt 0:00:01]} 70. Ra7+ {[%emt 0:00:08]} Ke8 {[%emt 0:00:02]} 1/2-1/2

[Event "European Online Club-ch-C 2021"]
[Site "Online"]
[Date "2021.03.27"]
[Round "3.20"]
[White "Lahoche, Dorian"]
[Black "Marn, Jan"]
[Result "0-1"]
[ECO "C54"]
[WhiteElo "2124"]
[BlackElo "2346"]
[Annotator "NA"]
[PlyCount "64"]
[EventDate "2021.03.27"]
[EventType "team-tourn"]
[EventCountry "NET"]
[SourceTitle "playchess.com"]
[Source "ChessBase"]
[SourceQuality "1"]
[TimeControl "900+5"]

1. e4 {[%emt 0:00:00]} e5 {[%emt 0:00:02]} 2. Nf3 {[%emt 0:00:04]} Nc6 {[%emt 0:00:02]} 3. Bc4 {[%emt 0:00:01]} Bc5 {[%emt 0:00:04]} 4. c3 {[%emt 0:00:01]} Nf6 {[%emt 0:00:02]} 5. d3 {[%emt 0:00:04]} a5 {[%emt 0:00:05]} 6. a4 {[%emt 0:00:05]} d6 {[%emt 0:00:10]} 7. Nbd2 {[%emt 0:00:30]} O-O {[%emt 0:00:25]} 8. O-O {[%emt 0:00:04]} Ba7 {[%emt 0:00:14]} 9. Re1 {[%emt 0:00:17]} Ng4 {[%emt 0:00:35]} 10. Re2 {[%emt 0:00:11]} Kh8 {[%emt 0:00:02]} 11. h3 {[%emt 0:00:15]} f5 {[%emt 0:02:37]} 12. exf5 {[%emt 0:02:51]} Nxf2 {[%emt 0:00:05]} 13. Rxf2 {[%emt 0:00:09]} Bxf2+ {[%emt 0:00:02]} 14. Kxf2 {[%emt 0:00:03]} Bxf5 {[%emt 0:00:02]} 15. Nf1 {[%emt 0:01:02]} d5 {[%emt 0:00:11]} 16. Bb5 {[%emt 0:00:34]} e4 {[%emt 0:00:02]} 17. dxe4 {[%emt 0:01:18]} dxe4 {[%emt 0:00:24]} 18. Qxd8 {[%emt 0:00:11]} Raxd8 {[%emt 0:00:00]} 19. Bxc6 {[%emt 0:01:50]} bxc6 {[%emt 0:00:00]} 20. Nd4 {[%emt 0:00:03]} Bxh3+ {[%emt 0:02:46]} 21. Kg1 {[%emt 0:01:08]} c5 {[%emt 0:00:51]} 22. gxh3 {[%emt 0:00:27]} cxd4 {[%emt 0:00:06]} 23. cxd4 {[%emt 0:00:04]} Rxd4 {[%emt 0:00:02]} 24. Be3 {[%emt 0:00:37]} Rd3 {[%emt 0:00:32]} 25. Rc1 {[%emt 0:00:56]} h6 {[%emt 0:00:40]} 26. Kg2 {[%emt 0:02:38]} Rxf1 {[%emt 0:00:19]} 27. Kxf1 {[%emt 0:00:06]} Rxe3 {[%emt 0:00:02]} 28. Rxc7 {[%emt 0:00:01]} Rxh3 {[%emt 0:00:14]} 29. Ra7 {[%emt 0:00:27]} Rb3 {[%emt 0:00:30]} 30. Rxa5 {[%emt 0:00:15]} Rxb2 {[%emt 0:00:01]} 31. Re5 {[%emt 0:00:02]} Rb4 {[%emt 0:00:02]} 32. Ke2 {[%emt 0:00:09]} Rxa4 {[%emt 0:00:02]} 0-1

[Event "European Online Club-ch-C 2021"]
[Site "Online"]
[Date "2021.03.27"]
[Round "4.1"]
[White "Sahin, Ozgun"]
[Black "Le Goff, Ronan"]
[Result "1/2-1/2"]
[ECO "C45"]
[WhiteElo "2281"]
[BlackElo "2288"]
[Annotator "NA"]
[PlyCount "70"]
[EventDate "2021.03.27"]
[EventType "team-tourn"]
[EventCountry "NET"]
[SourceTitle "playchess.com"]
[Source "ChessBase"]
[SourceQuality "1"]
[TimeControl "900+5"]

1. e4 {[%emt 0:00:00]} e5 {[%emt 0:00:10]} 2. Nf3 {[%emt 0:00:03]} Nc6 {[%emt 0:00:02]} 3. d4 {[%emt 0:00:02]} exd4 {[%emt 0:00:02]} 4. Nxd4 {[%emt 0:00:01]} Qf6 {[%emt 0:00:32]} 5. Nb5 {[%emt 0:00:32]} Bc5 {[%emt 0:00:20]} 6. Qe2 {[%emt 0:00:10]} Qd8 {[%emt 0:02:49]} 7. Be3 {[%emt 0:00:25]} Bxe3 {[%emt 0:00:12]} 8. Qxe3 {[%emt 0:00:03]} a6 {[%emt 0:00:06]} 9. N5c3 {[%emt 0:00:03]} Nge7 {[%emt 0:00:14]} 10. Nd5 {[%emt 0:00:05]} O-O {[%emt 0:00:54]} 11. Nbc3 {[%emt 0:00:04]} Nxd5 {[%emt 0:00:55]} 12. Nxd5 {[%emt 0:00:03]} Ne7 {[%emt 0:00:16]} 13. O-O-O {[%emt 0:00:41]} Nxd5 {[%emt 0:00:10]} 14. Rxd5 {[%emt 0:00:03]} d6 {[%emt 0:00:04]} 15. e5 {[%emt 0:00:13]} Be6 {[%emt 0:00:05]} 16. Rd4 {[%emt 0:00:44]} d5 {[%emt 0:00:09]} 17. Rd2 {[%emt 0:01:05]} Qe7 {[%emt 0:00:26]} 18. f4 {[%emt 0:00:14]} c5 {[%emt 0:00:43]} 19. f5 {[%emt 0:00:06]} Bxf5 {[%emt 0:00:07]} 20. Rxd5 {[%emt 0:00:04]} Rac8 {[%emt 0:00:13]} 21. a3 {[%emt 0:01:34]} c4 {[%emt 0:00:35]} 22. Qc3 {[%emt 0:01:29]} b5 {[%emt 0:00:17]} 23. Be2 {[%emt 0:00:20]} Qg5+ {[%emt 0:01:12]} 24. Rd2 {[%emt 0:01:12]} a5 {[%emt 0:01:06]} 25. g4 {[%emt 0:01:29]} b4 {[%emt 0:01:15]} 26. axb4 {[%emt 0:00:06]} axb4 {[%emt 0:00:02]} 27. Qxb4 {[%emt 0:00:07]} c3 {[%emt 0:00:03]} 28. bxc3 {[%emt 0:00:03]} Rb8 {[%emt 0:00:08]} 29. h4 {[%emt 0:00:59]} Qh6 {[%emt 0:00:58]} 30. Qd6 {[%emt 0:00:24]} Be6 {[%emt 0:00:24]} 31. g5 {[%emt 0:00:17]} Qg6 {[%emt 0:00:03]} 32. Bd3 {[%emt 0:00:20]} Qh5 {[%emt 0:01:05]} 33. Be2 {[%emt 0:00:18]} Qg6 {[%emt 0:00:57]} 34. Bd3 {[%emt 0:00:23]} Qh5 {[%emt 0:00:24]} 35. Be2 {[%emt 0:00:03]} Qg6 {[%emt 0:00:03]} 1/2-1/2